bitfinex/quotes_ETHUSD_20250404
["timestamp","ask_amount","ask_price","bid_price","bid_amount"]
[1743736550732,5.58753,1789.7,1789.4,5.58834]
[1743736551071,6.39394,1789.8,1789.4,12.294364]
[1743736551834,11.98135,1789.8,1789.4,5.58832]
[1743736552166,6.39394,1789.8,1789.4,11.17667]
[1743736552670,6.39394,1789.8,1789.5,5.58814]
[1743736552842,6.39394,1789.8,1789.4,11.17667]
[1743736553046,6.39394,1789.8,1789.4,5.58832]
[1743736553375,11.98139,1789.8,1789.4,11.17667]
[1743736553537,6.39394,1789.8,1789.4,5.58832]
[1743736553739,5.58755,1789.7,1789.4,5.58832]
[1743736554439,6.39394,1789.8,1789.4,5.58832]
[1743736554639,11.98133,1789.8,1789.4,11.17667]
[1743736555269,6.39394,1789.8,1789.4,5.58832]
[1743736555755,6.39394,1789.8,1789.4,11.17667]
[1743736555940,6.39394,1789.8,1789.5,5.58808]
[1743736556471,6.39394,1789.8,1789.4,6.705987]
[1743736556778,5.58753,1789.7,1789.4,5.58832]
[1743736557275,11.17598,1789.6,1789.2,5.58906]
[1743736557437,6.3856,1789.5,1789.2,11.17801]
[1743736557777,5.58855,1789.4,1789.1,5.58936]
[1743736557976,11.1772,1789.4,1789.0,5.58967]
[1743736558161,5.58855,1789.4,1789.0,12.376373]
[1743736558485,5.58855,1789.4,1788.9,0.7918]
[1743736558486,5.58919,1789.2,1788.9,5.58996]
[1743736558788,5.614,1789.1,1788.8,5.59019]
[1743736559149,5.614,1789.1,1788.8,5.59018]
[1743736559866,5.614,1789.1,1788.8,11.18036]
[1743736560076,5.614,1789.1,1788.8,11.18041]
[1743736560284,5.614,1789.1,1788.8,12.377631]
[1743736560570,5.614,1789.1,1788.8,11.18037]
[1743736560773,5.614,1789.1,1788.9,5.59002]
[1743736561158,5.614,1789.1,1789.0,5.58971]
[1743736561367,5.614,1789.1,1788.9,11.17978]
[1743736562073,5.614,1789.1,1789.0,5.58971]
[1743736562240,5.614,1789.1,1789.0,7.499468]
[1743736564368,5.614,1789.4,1789.2,5.58898]
[1743736564562,5.614,1789.4,1789.2,11.17796]
[1743736565081,5.614,1789.4,1789.3,5.58877]
[1743736566390,5.614,1789.4,1789.2,5.58896]
[1743736567067,0.7716,1789.3,1789.1,5.58936]
[1743736567281,5.58923,1789.2,1788.9,5.5899]
[1743736567595,6.38415,1789.1,1788.7,11.18109]
[1743736567890,5.614,1789.0,1788.7,11.18109]
[1743736568294,5.614,1789.0,1788.8,5.59033]
[1743736568474,5.614,1789.0,1788.8,5.59019]
[1743736568681,5.614,1789.0,1788.9,5.59002]
[1743736568990,5.614,1789.0,1788.8,5.59019]
[1743736569193,5.614,1789.0,1788.8,6.708267]
[1743736569494,5.614,1789.0,1788.8,12.298497]
[1743736569861,5.614,1789.0,1788.9,5.59002]
[1743736570891,5.614,1789.0,1788.8,6.708267]
[1743736571087,5.614,1789.0,1788.9,5.59002]
[1743736571268,5.614,1789.0,1788.9,6.8198487]
[1743736571881,5.614,1789.0,1788.9,1.2298287]
[1743736572083,5.614,1789.0,1788.8,5.59019]
[1743736575093,0.7945,1788.9,1788.7,5.59052]
[1743736576198,6.38459,1788.9,1788.4,5.59133]
[1743736576405,5.5908,1788.7,1788.1,0.05]
[1743736576567,11.99946,1788.6,1788.3,5.59174]
[1743736577687,11.99946,1788.6,1788.2,5.59216]
[1743736577899,5.59136,1788.5,1788.2,5.59216]
[1743736578102,14.58843537,1788.6,1788.2,11.18422]
[1743736578334,14.58843537,1788.6,1788.3,5.59187]
[1743736579528,8.99747537,1788.6,1788.3,11.18364]
[1743736579703,6.4085,1788.6,1788.4,5.59148]
[1743736581324,6.4085,1788.6,1788.3,5.59183]
[1743736581528,6.4085,1788.6,1788.3,11.18363]
[1743736581833,5.59137,1788.5,1788.1,5.6425]
[1743736581999,5.59168,1788.4,1788.1,5.6425]
[1743736582384,5.59128,1788.5,1788.1,5.64234]
[1743736582598,8.99747537,1788.6,1788.2,5.59212]
[1743736582810,14.58854537,1788.6,1788.3,5.5919]
[1743736582995,8.99747537,1788.6,1788.1,5.64246]
[1743736583200,5.59152,1788.5,1788.1,11.23488]
[1743736583422,5.59152,1788.5,1788.2,5.59209]
[1743736584319,11.18298,1788.5,1788.1,5.64242]
[1743736584823,8.99747537,1788.6,1788.1,0.05]
[1743736585032,6.37099,1788.3,1788.1,0.05]
[1743736585329,11.20621,1788.2,1788.1,0.05]
[1743736585528,15.55290537,1788.2,1788.1,0.05]
[1743736585826,19.33190537,1788.2,1788.1,0.05]
[1743736586326,25.34190537,1788.2,1788.1,0.05]
[1743736587453,5.59415,1787.6,1787.3,5.595]
[1743736587653,5.614,1787.5,1787.2,11.19056]
[1743736587865,5.59482,1787.4,1787.1,6.47005]
[1743736588071,5.59482,1787.4,1787.1,0.05]
[1743736588414,5.59515,1787.3,1787.1,0.05]
[1743736588815,11.63167288,1787.5,1787.1,5.6456]
[1743736589049,1.16316729,1787.4,1787.1,5.6456]
[1743736589247,6.75798729,1787.4,1787.1,0.05]
[1743736589563,6.75798729,1787.4,1787.1,5.6456]
[1743736590126,12.02335,1787.3,1787.1,0.05]
[1743736590339,6.42808,1787.3,1787.1,0.05]
[1743736590561,6.238148,1787.2,1787.1,0.05]
[1743736596373,0.642808,1787.2,1787.1,0.05]
[1743736596670,5.616,1787.2,1787.1,0.05]
[1743736598943,11.21134,1787.2,1787.1,0.05]
[1743736600061,5.616,1787.2,1787.1,0.05]
[1743736602353,11.21134,1787.2,1787.1,0.05]
[1743736605592,5.616,1787.2,1787.1,0.05]
[1743736606076,3.0,1787.5,1787.2,5.59534]
[1743736606260,6.01,1787.6,1787.4,5.59471]
[1743736606465,5.616,1787.6,1787.3,6.41676]
[1743736606673,5.616,1787.6,1787.4,5.5947]
[1743736606898,5.616,1787.6,1787.4,5.59458]
[1743736607197,6.01,1787.8,1787.6,5.59409]
[1743736607353,5.616,1787.7,1787.6,5.59409]
[1743736607748,5.616,1787.7,1787.4,5.59462]
[1743736607966,5.616,1787.7,1787.4,11.18918]
[1743736608169,11.20988,1787.7,1787.3,6.41682]
[1743736608369,1.120988,1787.6,1787.3,6.41682]
[1743736608571,1.120988,1787.6,1787.4,5.59469]
[1743736608780,1.120988,1787.6,1787.4,5.59457]
[1743736608984,5.616,1787.7,1787.5,5.5944]
[1743736609572,5.616,1787.6,1787.5,5.5944]
[1743736611361,5.616,1787.6,1787.4,5.59457]
[1743736612074,5.616,1787.6,1787.5,5.5944]
[1743736612560,5.616,1787.6,1787.4,5.59457]
[1743736612754,5.616,1787.6,1787.4,11.18917]
[1743736613486,5.616,1787.6,1787.5,5.5944]
[1743736613990,6.01,1787.8,1787.6,5.59406]
[1743736614158,5.615,1787.7,1787.6,11.18804]
[1743736615197,5.615,1787.9,1787.8,5.59337]
[1743736615397,5.615,1787.9,1787.7,11.18742]
[1743736615565,5.615,1787.9,1787.7,5.59365]
[1743736616162,6.398,1787.9,1787.7,5.59365]
[1743736616363,6.398,1787.9,1787.7,11.18729]
[1743736616676,5.615,1787.9,1787.8,5.59346]
[1743736619001,6.01,1788.1,1787.6,6.34763]
[1743736619208,5.613,1787.9,1787.8,5.59346]
[1743736619562,11.60271,1788.1,1787.7,11.1873]
[1743736619762,5.613,1787.9,1787.7,11.1873]
[1743736620004,5.613,1787.9,1787.7,11.18732]
[1743736620161,5.613,1787.9,1787.7,5.59364]
[1743736620362,5.613,1787.9,1787.8,5.59346]
[1743736621923,5.613,1787.9,1787.7,11.18731]
[1743736622066,5.613,1787.9,1787.8,5.59346]
[1743736622479,5.613,1787.9,1787.7,11.1873]
[1743736622688,5.613,1787.9,1787.6,6.34762]
[1743736622988,5.59412,1787.6,1787.3,5.59497]
[1743736623309,5.612,1787.5,1787.3,11.18989]
[1743736623514,5.612,1787.5,1787.4,5.59471]
[1743736626772,5.612,1787.5,1787.4,6.34831]
[1743736629023,6.01,1787.8,1787.7,6.42277]
[1743736629188,5.612,1787.9,1787.8,5.59346]
[1743736629708,0.8091,1788.2,1788.0,5.59278]
[1743736629897,5.59162,1788.4,1788.0,11.18552]
[1743736629898,6.40072,1788.4,1788.0,11.18552]
[1743736630099,5.612,1788.2,1788.0,11.18552]
[1743736630327,5.612,1788.2,1788.1,5.59252]
[1743736630831,49.681,1788.5,1788.0,0.829]
[1743736631028,5.612,1788.4,1788.3,11.1834]
[1743736631195,5.612,1788.4,1788.3,13.13074]
[1743736631522,6.8191,1789.0,1788.7,5.59039]
[1743736631678,5.611,1788.9,1788.7,11.18086]
[1743736631883,5.611,1788.9,1788.7,5.59039]
[1743736632095,0.5611,1788.8,1788.7,5.59039]
[1743736633135,6.8191,1789.0,1788.8,5.5903]
[1743736633295,5.611,1788.9,1788.8,5.5903]
[1743736633629,6.01,1789.0,1788.9,5.59002]
[1743736634339,5.611,1789.1,1788.9,5.58992]
[1743736634629,43.657,1789.2,1788.9,5.58992]
[1743736634785,5.61,1789.1,1789.0,5.58971]
[1743736636519,6.8191,1789.5,1789.2,11.17798]
[1743736636719,5.61,1789.4,1789.2,11.17798]
[1743736637230,5.61,1789.4,1789.2,5.58891]
[1743736637532,5.58855,1789.4,1789.1,5.58934]
[1743736637740,5.609,1789.3,1789.1,11.17868]
[1743736639130,5.609,1789.3,1789.1,5.58934]
[1743736639456,5.609,1789.3,1789.1,11.17854]
[1743736639633,5.609,1789.3,1789.1,5.58925]
[1743736640089,5.609,1789.3,1789.2,5.58909]
[1743736640293,5.609,1789.3,1789.1,5.58924]
[1743736640831,0.8091,1789.2,1789.0,5.58962]
[1743736640989,5.58957,1789.1,1788.8,5.5903]
[1743736641195,5.59024,1788.9,1788.5,5.59098]
[1743736641405,12.00663,1788.8,1788.4,11.18302]
[1743736641587,12.00663,1788.8,1788.4,5.59144]
[1743736641792,5.59066,1788.7,1788.4,5.59144]
[1743736642493,12.00662,1788.8,1788.4,5.59144]
[1743736642692,8.47745115,1788.8,1788.5,5.59118]
[1743736642987,14.06783115,1788.8,1788.5,5.59118]
[1743736643204,8.47745115,1788.8,1788.5,11.18229]
[1743736643721,14.06793115,1788.8,1788.4,11.18296]
[1743736644122,8.47745115,1788.8,1788.5,5.59125]
[1743736644459,5.607,1788.7,1788.6,5.59081]
[1743736644645,5.607,1788.7,1788.5,5.59127]
[1743736645252,5.607,1788.7,1788.5,11.18241]
[1743736645426,5.607,1788.7,1788.6,6.37356]
[1743736646668,5.607,1788.7,1788.6,8.96745333]
[1743736646820,5.606,1789.1,1789.0,5.58953]
[1743736647751,3.0,1789.3,1789.2,5.58896]
[1743736647752,5.606,1789.3,1789.2,5.58896]
[1743736649357,5.606,1789.3,1789.1,11.17853]
[1743736649658,5.606,1789.3,1789.1,5.58929]
[1743736650216,5.606,1789.3,1789.1,11.17858]
[1743736650622,5.606,1789.3,1789.1,5.58929]
[1743736652073,5.606,1789.3,1789.1,11.17855]
[1743736652285,5.606,1789.3,1789.1,5.58926]
[1743736654173,5.606,1789.3,1789.1,11.17852]
[1743736654382,5.606,1789.3,1789.1,5.58926]
[1743736655185,5.606,1789.3,1789.2,5.58909]
[1743736655367,5.606,1789.3,1789.2,6.706925]
[1743736655701,6.01,1789.5,1789.3,5.58869]
[1743736655982,3.7786,1789.7,1789.4,5.58831]
[1743736656144,5.604,1789.6,1789.4,11.17662]
[1743736656345,0.7786,1789.7,1789.5,5.58814]
[1743736656785,5.604,1789.6,1789.5,5.58814]
[1743736657652,5.604,1789.6,1789.4,11.17669]
[1743736658194,5.604,1789.6,1789.5,5.58815]
[1743736658391,6.01,1789.8,1789.5,11.1763]
[1743736658595,5.603,1789.7,1789.5,11.1762]
[1743736658750,6.01,1789.8,1789.6,5.58784]
[1743736658955,5.603,1789.7,1789.6,11.17558]
[1743736659522,0.854,1789.9,1789.8,5.58721]
[1743736659647,0.05,1789.9,1789.8,5.58721]
[1743736659850,0.05,1789.9,1789.8,6.38351]
[1743736660083,0.05,1789.9,1789.8,7.63646545]
[1743736660298,0.05,1789.9,1789.8,7.5806]
[1743736661985,0.05,1789.9,1789.8,7.63646658]
[1743736662206,0.05,1789.9,1789.8,7.5806]
[1743736662709,0.05,1789.9,1789.8,7.63646658]
[1743736663010,0.05,1789.9,1789.8,7.5806]
[1743736663397,0.05,1789.9,1789.8,7.63646345]
[1743736663597,0.05,1789.9,1789.8,7.5806]
[1743736663964,0.05,1789.9,1789.8,7.63646345]
[1743736664511,1e-05,1789.9,1789.8,11.13573566]
[1743736664810,1e-05,1789.9,1789.8,14.07987221]
[1743736668616,5.65,1790.9,1790.8,5.58409]
[1743736668814,0.05,1790.9,1790.8,6.25783699]
[1743736668975,1e-05,1790.9,1790.8,7.10997339]
[1743736669302,1e-05,1790.9,1790.8,7.60413699]
[1743736669715,1e-05,1790.9,1790.8,7.05413699]
[1743736669881,1e-05,1790.9,1790.8,7.10996545]
[1743736670380,1e-05,1790.9,1790.8,7.60413699]
[1743736670579,1e-05,1790.9,1790.8,7.05413699]
[1743736671084,1e-05,1790.9,1790.8,7.6599671]
[1743736671374,1e-05,1790.9,1790.8,7.60413699]
[1743736672914,1e-05,1790.9,1790.8,8.01969044]
[1743736677146,1e-05,1790.9,1790.8,8.07551625]
[1743736677715,1e-05,1790.9,1790.8,10.65839012]
[1743736677930,1e-05,1790.9,1790.8,10.60256431]
[1743736679713,1e-05,1790.9,1790.8,13.60256431]
[1743736680754,5.63078,1791.9,1791.8,5.58098]
[1743736680755,0.05,1791.9,1791.8,5.58098]
[1743736681349,0.05,1791.9,1791.8,5.63678462]
[1743736682259,0.05,1791.9,1791.8,6.13098]
[1743736683155,1e-05,1791.9,1791.8,6.18677448]
[1743736683366,1e-05,1791.9,1791.8,8.14756448]
[1743736683714,1e-05,1791.9,1791.8,8.09177]
[1743736684126,1e-05,1791.9,1791.8,8.51190872]
[1743736685630,1e-05,1791.9,1791.8,7.32807]
[1743736686058,1e-05,1791.9,1791.8,8.14756644]
[1743736686680,0.7661,1792.9,1792.7,5.57809]
[1743736686833,6.3581,1792.9,1792.8,5.57786]
[1743736687166,5.592,1793.1,1793.0,5.57706]
[1743736687368,0.7661,1793.2,1793.1,5.57693]
[1743736687539,6.3581,1793.2,1793.1,5.57693]
[1743736687743,0.8008,1793.4,1793.2,5.57662]
[1743736687941,6.3928,1793.4,1793.3,5.57631]
[1743736688141,0.05,1793.9,1793.5,5.57548]
[1743736688142,0.8008,1793.7,1793.5,5.57548]
[1743736688328,0.8008,1793.7,1793.3,5.5763]
[1743736688530,0.8008,1793.5,1793.2,5.57661]
[1743736688762,5.591,1793.4,1793.0,5.577]
[1743736688928,3.7837,1793.3,1792.7,5.57792]
[1743736689131,0.7837,1792.9,1792.8,5.57786]
[1743736689376,6.3747,1792.9,1792.8,5.57786]
[1743736689783,0.7837,1792.9,1792.8,5.57786]
[1743736690076,6.3747,1792.9,1792.8,5.57786]
[1743736692185,6.3747,1792.9,1792.7,5.57792]
[1743736692364,6.3747,1792.9,1792.7,11.15592]
[1743736692563,5.59,1792.9,1792.8,5.57786]
[1743736692859,0.7837,1793.1,1792.8,5.57786]
[1743736693061,5.59,1792.9,1792.7,5.57811]
[1743736693493,5.59,1792.9,1792.6,5.57845]
[1743736693782,5.59,1792.9,1792.6,11.15675]
[1743736694454,5.59,1792.9,1792.6,11.15667]
[1743736694787,5.59,1792.9,1792.6,5.5783]
[1743736694991,7.264468,1792.9,1792.2,1.3036]
[1743736695196,7.264468,1792.9,1792.2,5.57954]
[1743736695197,5.57864,1792.6,1792.2,5.57954]
[1743736695484,6.3727,1792.5,1792.3,5.57924]
[1743736695691,0.7837,1792.5,1792.4,5.57911]
[1743736695890,6.3727,1792.5,1792.4,5.57911]
[1743736696282,0.7837,1792.8,1792.7,5.57817]
[1743736696479,6.3727,1792.8,1792.7,5.57817]
[1743736697294,0.7837,1792.8,1792.7,5.57817]
[1743736697479,5.589,1792.8,1792.7,11.15634]
[1743736698468,5.589,1792.8,1792.7,5.57817]
[1743736699408,44.3267,1793.3,1793.2,5.57662]
[1743736699558,49.9157,1793.3,1793.1,5.5768]
[1743736699759,49.9157,1793.3,1793.1,11.15363]
[1743736699955,6.3727,1793.3,1793.2,5.57662]
[1743736700283,6.3717,1793.3,1793.2,5.57662]
[1743736701892,6.3717,1793.3,1793.1,5.5768]
[1743736702094,1.421335,1793.5,1793.3,5.57629]
[1743736702391,5.588,1793.4,1793.3,5.57629]
[1743736702593,9.01,1793.8,1793.4,5.576]
[1743736702796,5.588,1793.7,1793.6,5.57537]
[1743736703359,5.588,1793.7,1793.5,5.57541]
[1743736703556,6.22922,1793.7,1793.2,11.15312]
[1743736703787,0.8242,1793.6,1793.2,11.15297]
[1743736703973,5.57586,1793.5,1793.1,11.15366]
[1743736704554,5.57585,1793.5,1793.1,5.57678]
[1743736704787,5.57585,1793.5,1793.1,11.15356]
[1743736704987,0.557585,1793.4,1793.1,5.57677]
[1743736705192,5.587,1793.3,1793.1,5.57677]
[1743736705499,5.587,1793.3,1793.1,11.15358]
[1743736705861,5.587,1793.3,1793.1,11.15359]
[1743736706063,5.57716,1793.1,1792.7,5.57811]
[1743736706290,11.15438,1793.1,1792.7,5.57802]
[1743736706565,5.57716,1793.1,1792.7,11.15603]
[1743736706762,4.3829,1793.2,1792.8,5.57786]
[1743736706967,0.8242,1793.2,1792.9,5.57755]
[1743736707276,5.587,1793.3,1793.2,5.57662]
[1743736707459,0.8242,1793.4,1793.3,5.57631]
[1743736707658,0.8242,1793.6,1793.4,5.57572]
[1743736707904,5.586,1793.5,1793.4,5.57572]
[1743736708089,5.586,1793.6,1793.5,5.57563]
[1743736711209,5.586,1793.6,1793.1,0.822]
[1743736711210,0.8249,1793.4,1793.1,5.57667]
[1743736711365,0.8249,1793.4,1792.7,0.80816912]
[1743736711703,0.8249,1793.4,1793.2,5.57652]
[1743736712008,6.4109,1793.6,1793.3,5.57631]
[1743736712708,3.8249,1793.6,1793.4,5.57588]
[1743736712863,5.585,1793.5,1793.4,5.57588]
[1743736713067,5.585,1793.5,1793.3,5.57621]
[1743736713401,5.585,1793.5,1793.4,5.576]
[1743736714102,6.8349,1793.8,1793.5,5.57542]
[1743736714292,5.585,1793.7,1793.5,5.57542]
[1743736714493,5.585,1793.7,1793.6,5.57537]
[1743736715390,6.8349,1793.8,1793.6,5.57537]
[1743736715592,5.585,1793.7,1793.6,5.57537]
[1743736716024,5.585,1793.7,1793.4,5.57593]
[1743736716324,11.16007,1793.7,1793.4,5.57593]
[1743736716715,11.16007,1793.7,1793.4,11.15178]
[1743736716917,5.585,1793.7,1793.5,5.57565]
[1743736717821,5.585,1793.7,1793.4,5.57585]
[1743736718027,5.585,1793.7,1793.4,11.15172]
[1743736718390,5.585,1793.7,1793.4,5.57585]
[1743736718729,5.585,1793.7,1793.5,5.57563]
[1743736719087,5.585,1793.7,1793.5,5.57555]
[1743736719294,5.585,1793.7,1793.6,5.57537]
[1743736719622,5.584,1793.7,1793.6,11.15061]
[1743736719825,3.05,1793.9,1793.7,5.57506]
[1743736720126,5.584,1793.8,1793.6,5.57524]
[1743736721005,11.93648883,1793.8,1793.4,5.57587]
[1743736721414,11.93648883,1793.8,1793.5,5.57566]
[1743736721929,5.584,1793.8,1793.6,5.57537]
[1743736722139,5.584,1793.8,1793.6,11.15063]
[1743736722344,5.584,1793.8,1793.6,5.57526]
[1743736722532,5.584,1793.8,1793.6,11.15052]
[1743736722731,5.584,1793.8,1793.7,5.57506]
[1743736723702,5.584,1793.8,1793.6,5.57526]
[1743736723940,5.57507,1793.7,1793.4,11.15178]
[1743736724143,5.584,1793.8,1793.6,5.57535]
[1743736724440,5.584,1793.8,1793.6,5.57525]
[1743736725143,5.584,1793.8,1793.5,5.57557]
[1743736725444,5.584,1793.8,1793.6,5.57525]
[1743736725749,11.15878,1793.8,1793.5,5.57557]
[1743736726054,6.33429,1793.7,1793.4,5.57591]
[1743736726210,11.9095,1793.7,1793.4,5.57591]
[1743736726407,11.9095,1793.7,1793.2,5.57656]
[1743736726408,5.57551,1793.6,1793.2,5.57656]
[1743736726731,0.7591,1793.7,1793.0,0.55]
[1743736726931,0.7591,1793.7,1793.4,11.15172]
[1743736727257,11.95822,1793.9,1793.6,5.57537]
[1743736727458,11.15775,1793.8,1793.5,5.57554]
[1743736728254,5.57516,1793.7,1793.3,11.15242]
[1743736728550,5.57516,1793.7,1793.4,5.57596]
[1743736728710,5.57516,1793.7,1793.4,5.57587]
[1743736729046,5.57516,1793.7,1793.4,11.15174]
[1743736729212,5.57549,1793.6,1793.2,6.39276]
[1743736729413,6.33459,1793.6,1793.2,5.57646]
[1743736729647,5.57573,1793.5,1793.2,11.15294]
[1743736729844,5.583,1793.4,1793.2,5.57646]
[1743736730417,5.583,1793.4,1793.1,11.15367]
[1743736730618,0.7591,1793.3,1793.0,6.271466]
[1743736730954,5.57745,1793.0,1792.6,11.15682]
[1743736731250,5.583,1792.9,1792.6,5.57836]
[1743736731614,11.16055,1792.9,1792.6,5.57836]
[1743736732014,5.57793,1792.8,1792.5,5.57878]
[1743736732268,6.33739,1792.7,1792.3,0.8163]
[1743736732464,11.15728,1792.6,1792.2,5.57962]
[1743736732654,5.583,1792.5,1792.2,5.57962]
[1743736733173,11.16193,1792.5,1792.2,5.57962]
[1743736733661,5.583,1792.5,1792.3,5.57941]
[1743736734452,16.74081,1792.5,1792.1,5.57991]
[1743736734767,16.74081,1792.5,1792.2,5.57959]
[1743736734768,5.583,1792.5,1792.2,5.57959]
[1743736734974,5.583,1792.5,1792.3,5.57929]
[1743736735542,5.583,1792.5,1792.1,6.777673]
[1743736735543,11.16199,1792.5,1792.1,6.777673]
[1743736736091,5.57912,1792.4,1792.1,6.777673]
[1743736736269,11.16199,1792.5,1792.1,12.357553]
[1743736736849,11.16199,1792.5,1792.1,12.357413]
[1743736737282,16.74101,1792.5,1792.1,6.777533]
[1743736737652,5.57915,1792.4,1792.1,6.777533]
[1743736737900,11.16199,1792.5,1792.1,12.357473]
[1743736738076,11.16199,1792.5,1792.1,6.777533]
[1743736738392,11.16199,1792.5,1792.2,5.57959]
[1743736738595,5.583,1792.5,1792.2,5.57957]
[1743736739062,5.583,1792.5,1792.3,5.57931]
[1743736739246,5.583,1792.5,1792.3,11.15861]
[1743736739450,5.585,1792.4,1792.3,5.57926]
[1743736739647,5.585,1792.4,1792.0,0.8163]
[1743736739892,5.585,1792.4,1792.2,5.57955]
[1743736740055,5.585,1792.4,1792.2,6.137505]
[1743736740257,5.585,1792.4,1792.3,5.57942]
[1743736741990,5.57855,1792.6,1792.3,5.57942]
[1743736742293,5.585,1792.5,1792.3,5.57942]
[1743736742452,5.585,1792.5,1792.2,0.557955]
[1743736742657,16.74294,1792.5,1792.1,11.15996]
[1743736742891,5.57912,1792.4,1792.0,6.39663]
[1743736743065,11.1599,1792.2,1791.8,5.58092]
[1743736743270,5.585,1792.1,1791.8,11.16175]
[1743736743495,5.585,1792.1,1791.9,5.58066]
[1743736743684,5.585,1792.1,1792.0,6.38945]
[1743736744491,5.585,1792.1,1792.0,5.58035]
[1743736744807,5.585,1792.1,1791.9,5.58066]
[1743736745594,5.585,1792.1,1791.9,5.58051]
[1743736745991,5.585,1792.1,1792.0,5.58035]
[1743736747212,0.829,1792.5,1792.3,5.57932]
[1743736747412,6.01,1792.6,1792.4,5.57908]
[1743736747710,0.829,1792.7,1792.5,5.5788]
[1743736747878,5.57788,1792.8,1792.5,5.5788]
[1743736747879,11.98427,1792.9,1792.5,5.5788]
[1743736748081,0.829,1792.9,1792.6,5.57842]
[1743736748314,5.586,1792.8,1792.6,5.57842]
[1743736748475,5.586,1792.8,1792.6,5.57836]
[1743736749170,5.586,1792.8,1792.4,5.57909]
[1743736749503,0.8,1792.6,1792.3,5.57939]
[1743736749706,0.8,1792.6,1792.3,11.15869]
[1743736749878,0.8,1792.6,1792.4,5.57911]
[1743736750082,0.8,1792.6,1792.4,11.15807]
[1743736750285,0.8,1792.6,1792.5,5.5788]
[1743736750486,0.8,1792.6,1792.3,5.57912]
[1743736750684,0.8,1792.6,1792.4,5.57909]
[1743736751111,0.8,1792.6,1792.4,11.15805]
[1743736751710,0.8,1792.6,1792.4,11.15796]
[1743736752015,0.8,1792.6,1792.5,5.5788]
[1743736752541,9.01,1793.1,1792.4,5.57896]
[1743736752706,9.01,1793.1,1792.1,5.58]
[1743736752707,6.385,1793.0,1792.8,11.15547]
[1743736752893,5.585,1793.0,1792.9,5.57755]
[1743736756058,43.542,1793.2,1793.1,5.57693]
[1743736756226,5.585,1793.2,1793.1,11.15386]
[1743736756592,5.585,1793.2,1793.1,5.57693]
[1743736759041,6.01,1793.6,1793.4,5.57583]
[1743736759364,0.8,1793.7,1793.5,5.57555]
[1743736759566,5.584,1793.6,1793.5,5.57555]
[1743736759982,5.584,1793.6,1793.2,6.36417]
[1743736760181,5.57603,1793.4,1793.0,5.57719]
[1743736760381,5.57603,1793.4,1792.9,6.42090892]
[1743736760574,5.57638,1793.3,1793.0,5.57721]
[1743736760773,1.3584,1793.5,1793.1,5.57693]
[1743736760774,5.584,1793.2,1793.1,5.57693]
[1743736761785,6.37579,1793.5,1793.1,11.15386]
[1743736761983,5.584,1793.4,1793.1,5.57681]
[1743736762186,5.584,1793.4,1793.2,5.57651]
[1743736762481,5.584,1793.3,1793.2,5.57649]
[1743736763478,5.583,1793.4,1793.3,5.57631]
[1743736764353,5.583,1793.4,1793.2,5.57648]
[1743736764554,5.583,1793.4,1793.2,11.153]
[1743736764756,5.583,1793.4,1793.3,5.57631]
[1743736767770,0.823,1793.7,1793.5,5.57564]
[1743736767969,5.583,1793.6,1793.5,5.57564]
[1743736768896,5.583,1793.6,1793.4,5.57586]
[1743736770496,5.583,1793.6,1793.4,11.15176]
[1743736770791,5.583,1793.6,1793.4,5.57586]
[1743736771595,6.781115,1793.6,1793.3,5.57623]
[1743736771797,5.57614,1793.4,1793.0,5.57724]
[1743736771973,8.15312634,1793.4,1793.0,11.15437]
[1743736772301,5.57642,1793.3,1793.0,5.57713]
[1743736772484,5.582,1793.2,1793.0,5.57713]
[1743736773199,5.582,1793.2,1792.9,5.57745]
[1743736773398,5.57738,1793.0,1792.6,5.57834]
[1743736773895,5.57738,1793.0,1792.7,5.57808]
[1743736774308,0.823,1793.1,1792.8,5.57774]
[1743736774454,0.823,1793.1,1792.8,11.15548]
[1743736774660,5.582,1793.0,1792.9,5.57728]
[1743736775163,5.582,1793.0,1792.8,7.473768]
[1743736775495,5.582,1793.0,1792.9,5.57755]
[1743736775656,5.582,1793.0,1792.8,7.473768]
[1743736775859,5.582,1793.0,1792.8,5.57772]
[1743736776090,6.405,1793.0,1792.7,5.57811]
[1743736776277,11.98234,1793.0,1792.7,5.57817]
[1743736776886,5.57755,1792.9,1792.6,5.57843]
[1743736777094,11.98234,1793.0,1792.6,11.15677]
[1743736777286,17.55974,1793.0,1792.6,5.57834]
[1743736777497,19.57341263,1793.0,1792.6,5.57834]
[1743736777906,13.99601263,1793.0,1792.6,11.1567]
[1743736778111,19.57351263,1793.0,1792.6,5.57834]
[1743736778913,19.57351263,1793.0,1792.6,11.15667]
[1743736780717,5.5778,1792.9,1792.5,5.57871]
[1743736780915,2.57698634,1792.7,1792.4,11.15802]
[1743736781218,5.582,1792.6,1792.5,5.57855]
[1743736782991,6.3737,1792.6,1792.4,5.57897]
[1743736783522,5.582,1792.6,1792.4,11.15797]